[Event "Late-Titled-Tuesday-Blitz-October-03-2023"]
[Site "Chess.com"]
[Date "2023.10.03"]
[Round "6"]
[White "ETTrainer"]
[Black "Mariia89"]
[Result "1-0"]
[WhiteElo "2279"]
[BlackElo "2053"]
[TimeControl "180+1"]
[EndTime "15:05:40 PDT"]
[Termination "ETTrainer won by resignation"]

1. d4 {[%clk 0:03:00.6]} 1... Nf6 {[%clk 0:03:00]} 2. Bf4 {[%clk 0:03:00.6]}
2... c5 {[%clk 0:03:00.5]} 3. d5 {[%clk 0:03:00.4]} 3... d6 {[%clk 0:03:00.7]}
4. Nc3 {[%clk 0:02:59.4]} 4... g6 {[%clk 0:02:59.9]} 5. e4 {[%clk 0:02:59.4]}
5... Bg7 {[%clk 0:03:00]} 6. Bb5+ {[%clk 0:02:59.7]} 6... Bd7 {[%clk 0:02:59.6]}
7. a4 {[%clk 0:03:00.3]} 7... a6 {[%clk 0:02:58.8]} 8. Be2 {[%clk 0:03:00.1]}
8... Qa5 {[%clk 0:02:57.1]} 9. Qd2 {[%clk 0:02:51.7]} 9... Nh5 {[%clk
0:02:48.9]} 10. Bxh5 {[%clk 0:02:49.7]} 10... gxh5 {[%clk 0:02:49.3]} 11. Nge2
{[%clk 0:02:46.7]} 11... b5 {[%clk 0:02:36]} 12. O-O {[%clk 0:02:45.7]} 12... b4
{[%clk 0:02:35.6]} 13. Nd1 {[%clk 0:02:45.5]} 13... Qc7 {[%clk 0:02:32.4]} 14.
c3 {[%clk 0:02:42.6]} 14... a5 {[%clk 0:02:31.4]} 15. Ne3 {[%clk 0:02:28]} 15...
Na6 {[%clk 0:02:18.6]} 16. Ng3 {[%clk 0:02:17.1]} 16... h4 {[%clk 0:02:15.5]}
17. Ngf5 {[%clk 0:02:16]} 17... Bxf5 {[%clk 0:02:14.3]} 18. Nxf5 {[%clk
0:02:16.9]} 18... Bf6 {[%clk 0:02:12.6]} 19. Rfe1 {[%clk 0:02:05.4]} 19... O-O-O
{[%clk 0:01:55]} 20. Qe2 {[%clk 0:01:53.3]} 20... Kb7 {[%clk 0:01:47.5]} 21.
Rab1 {[%clk 0:01:44.2]} 21... e5 {[%clk 0:01:14.1]} 22. dxe6 {[%clk 0:01:35]}
22... fxe6 {[%clk 0:01:13.7]} 23. Qb5+ {[%clk 0:01:32.2]} 23... Ka7 {[%clk
0:01:11.4]} 24. Ne3 {[%clk 0:01:12.3]} 24... bxc3 {[%clk 0:00:35.2]} 25. bxc3
{[%clk 0:01:01.9]} 25... Bxc3 {[%clk 0:00:34.3]} 26. Red1 {[%clk 0:00:59.3]}
26... Bd4 {[%clk 0:00:19.2]} 27. Qc4 {[%clk 0:00:53.9]} 27... Bxe3 {[%clk
0:00:02.2]} 28. Bxe3 {[%clk 0:00:54.8]} 28... e5 {[%clk 0:00:02]} 29. Rb5 {[%clk
0:00:50.6]} 29... Nb4 {[%clk 0:00:00.7]} 30. Rb1 {[%clk 0:00:48.8]} 30... Rb8
{[%clk 0:00:01.4]} 31. h3 {[%clk 0:00:32.9]} 31... Rxb5 {[%clk 0:00:01.1]} 32.
Qxb5 {[%clk 0:00:28.6]} 32... Rb8 {[%clk 0:00:00.7]} 33. Qc4 {[%clk 0:00:27.8]}
33... Rb6 {[%clk 0:00:00.8]} 34. Rd1 {[%clk 0:00:22.5]} 34... Qb7 {[%clk
0:00:00.7]} 35. f3 {[%clk 0:00:17.1]} 35... Qb8 {[%clk 0:00:00.7]} 36. Qf7+
{[%clk 0:00:15.4]} 36... Qb7 {[%clk 0:00:01]} 37. Qxb7+ {[%clk 0:00:14.3]} 37...
Rxb7 {[%clk 0:00:01.9]} 38. Rxd6 {[%clk 0:00:14.9]} 38... Rc7 {[%clk 0:00:01.1]}
39. Re6 {[%clk 0:00:08.7]} 39... Nd3 {[%clk 0:00:01.4]} 40. Kf1 {[%clk
0:00:06.8]} 40... Kb7 {[%clk 0:00:01.9]} 41. Ke2 {[%clk 0:00:07]} 41... Nb2
{[%clk 0:00:02.2]} 42. Rxe5 {[%clk 0:00:05.6]} 42... Nxa4 {[%clk 0:00:03.1]} 43.
Kd2 {[%clk 0:00:05.1]} 43... c4 {[%clk 0:00:03.5]} 44. Kc2 {[%clk 0:00:04.9]}
44... c3 {[%clk 0:00:03.5]} 45. Rb5+ {[%clk 0:00:04.3]} 45... Ka6 {[%clk
0:00:03.6]} 46. Rh5 {[%clk 0:00:04.1]} 46... Rb7 {[%clk 0:00:03]} 47. Rh6+
{[%clk 0:00:03.9]} 47... Nb6 {[%clk 0:00:03.7]} 48. Kxc3 {[%clk 0:00:03.3]}
48... Rc7+ {[%clk 0:00:03.9]} 49. Kb3 {[%clk 0:00:02.7]} 49... Rb7 {[%clk
0:00:04.3]} 50. Rxb6+ {[%clk 0:00:02.3]} 50... Rxb6+ {[%clk 0:00:04.4]} 51. Bxb6
{[%clk 0:00:03.2]} 51... Kxb6 {[%clk 0:00:04.6]} 52. Ka4 {[%clk 0:00:04.1]}
52... h6 {[%clk 0:00:03.5]} 53. f4 {[%clk 0:00:04.1]} 53... Kc5 {[%clk
0:00:04.3]} 54. f5 {[%clk 0:00:03.1]} 54... Kd6 {[%clk 0:00:04.3]} 55. Kxa5
{[%clk 0:00:03]} 55... Ke5 {[%clk 0:00:04.6]} 56. Kb4 {[%clk 0:00:03.6]} 56...
Kf4 {[%clk 0:00:04.6]} 57. f6 {[%clk 0:00:04]} 57... Kg3 {[%clk 0:00:05.5]} 58.
f7 {[%clk 0:00:04.9]} 58... Kxg2 {[%clk 0:00:06.4]} 59. f8=Q {[%clk 0:00:05.8]}
59... Kxh3 {[%clk 0:00:06.8]} 60. Qxh6 {[%clk 0:00:06.1]} 60... Kh2 {[%clk
0:00:06.9]} 61. e5 {[%clk 0:00:06.9]} 61... Kg2 {[%clk 0:00:07.8]} 62. e6 {[%clk
0:00:07.5]} 62... h3 {[%clk 0:00:08.7]} 63. e7 {[%clk 0:00:07.8]} 63... h2
{[%clk 0:00:09.6]} 64. e8=Q {[%clk 0:00:08.3]} 1-0

[Event "Late-Titled-Tuesday-Blitz-October-03-2023"]
[Site "Chess.com"]
[Date "2023.10.03"]
[Round "6"]
[White "Zhigalko_Sergei"]
[Black "FabianoCaruana"]
[Result "1/2-1/2"]
[WhiteElo "2959"]
[BlackElo "3072"]
[TimeControl "180+1"]
[EndTime "15:06:27 PDT"]
[Termination "Game drawn by repetition"]

1. e4 {[%clk 0:03:00.9]} 1... e5 {[%clk 0:03:00.1]} 2. Nf3 {[%clk 0:03:01.2]}
2... Nc6 {[%clk 0:03:00.8]} 3. Bc4 {[%clk 0:03:00.3]} 3... Nf6 {[%clk
0:03:01.1]} 4. d3 {[%clk 0:03:00.5]} 4... Be7 {[%clk 0:03:01.1]} 5. O-O {[%clk
0:03:00.7]} 5... O-O {[%clk 0:03:01.3]} 6. Nbd2 {[%clk 0:03:01.4]} 6... d6
{[%clk 0:03:00.4]} 7. c3 {[%clk 0:03:00.8]} 7... h6 {[%clk 0:02:55.1]} 8. Re1
{[%clk 0:03:00.3]} 8... Re8 {[%clk 0:02:55.4]} 9. Bb3 {[%clk 0:02:55.8]} 9...
Bf8 {[%clk 0:02:54.5]} 10. h3 {[%clk 0:02:54.7]} 10... d5 {[%clk 0:02:48.8]} 11.
exd5 {[%clk 0:02:53.5]} 11... Nxd5 {[%clk 0:02:49.7]} 12. d4 {[%clk 0:02:52.9]}
12... Nf4 {[%clk 0:02:44.8]} 13. Nc4 {[%clk 0:02:47.3]} 13... Ng6 {[%clk
0:02:31.2]} 14. Ncxe5 {[%clk 0:02:18.2]} 14... Ncxe5 {[%clk 0:02:30.2]} 15. Nxe5
{[%clk 0:02:13.1]} 15... Nxe5 {[%clk 0:02:30.1]} 16. Rxe5 {[%clk 0:02:13.7]}
16... Rxe5 {[%clk 0:02:25.9]} 17. dxe5 {[%clk 0:02:14.6]} 17... Qxd1+ {[%clk
0:02:23.9]} 18. Bxd1 {[%clk 0:02:15.5]} 18... Be6 {[%clk 0:02:24.1]} 19. Be3
{[%clk 0:02:10.8]} 19... a5 {[%clk 0:02:23.3]} 20. f4 {[%clk 0:02:02.2]} 20...
a4 {[%clk 0:02:18.9]} 21. Bc2 {[%clk 0:02:02.3]} 21... Bd5 {[%clk 0:02:11.4]}
22. a3 {[%clk 0:01:59.2]} 22... b5 {[%clk 0:02:10.2]} 23. Rd1 {[%clk 0:01:56.4]}
23... c6 {[%clk 0:02:10.6]} 24. Kf2 {[%clk 0:01:52.4]} 24... Re8 {[%clk
0:02:07.4]} 25. Rd2 {[%clk 0:01:49.7]} 25... Be7 {[%clk 0:01:56.3]} 26. Bd1
{[%clk 0:01:42.1]} 26... f6 {[%clk 0:01:43.3]} 27. Bf3 {[%clk 0:01:40]} 27...
Bxf3 {[%clk 0:01:37.3]} 28. Kxf3 {[%clk 0:01:40.9]} 28... fxe5 {[%clk
0:01:37.7]} 29. fxe5 {[%clk 0:01:41.5]} 29... Kf7 {[%clk 0:01:38.1]} 30. Rd7
{[%clk 0:01:33.3]} 30... Ke6 {[%clk 0:01:38.4]} 31. Rc7 {[%clk 0:01:33.6]} 31...
Kd5 {[%clk 0:01:27.7]} 32. Ke2 {[%clk 0:01:11]} 32... h5 {[%clk 0:01:17.6]} 33.
Kd3 {[%clk 0:01:08.8]} 33... g6 {[%clk 0:01:15.3]} 34. g4 {[%clk 0:00:54.9]}
34... c5 {[%clk 0:00:49.2]} 35. Rb7 {[%clk 0:00:33.9]} 35... Kc6 {[%clk
0:00:44.4]} 36. Ra7 {[%clk 0:00:32.9]} 36... Kd5 {[%clk 0:00:43.6]} 37. Ra6
{[%clk 0:00:27.9]} 37... hxg4 {[%clk 0:00:41]} 38. hxg4 {[%clk 0:00:28.8]} 38...
c4+ {[%clk 0:00:39.5]} 39. Kc2 {[%clk 0:00:21.7]} 39... Ke4 {[%clk 0:00:15.7]}
40. Bd4 {[%clk 0:00:15.7]} 40... g5 {[%clk 0:00:14]} 41. Re6 {[%clk 0:00:13.7]}
41... Kd5 {[%clk 0:00:14.1]} 42. Rb6 {[%clk 0:00:12.6]} 42... Rh8 {[%clk
0:00:13.1]} 43. Rxb5+ {[%clk 0:00:12]} 43... Ke4 {[%clk 0:00:13.4]} 44. e6
{[%clk 0:00:10]} 44... Rh6 {[%clk 0:00:11.1]} 45. Ra5 {[%clk 0:00:04.5]} 45...
Rxe6 {[%clk 0:00:09.9]} 46. Rxa4 {[%clk 0:00:05]} 46... Rc6 {[%clk 0:00:10.1]}
47. Ra7 {[%clk 0:00:03.9]} 47... Bd6 {[%clk 0:00:07.4]} 48. a4 {[%clk
0:00:04.3]} 48... Kf3 {[%clk 0:00:07.5]} 49. a5 {[%clk 0:00:04.7]} 49... Kxg4
{[%clk 0:00:07.9]} 50. Rb7 {[%clk 0:00:04.7]} 50... Bf4 {[%clk 0:00:05.8]} 51.
Rb6 {[%clk 0:00:04.3]} 51... Rc8 {[%clk 0:00:05.5]} 52. a6 {[%clk 0:00:04.5]}
52... Ra8 {[%clk 0:00:05.8]} 53. Rc6 {[%clk 0:00:04.2]} 53... Kf3 {[%clk
0:00:05.6]} 54. Rxc4 {[%clk 0:00:04.5]} 54... Rxa6 {[%clk 0:00:05.3]} 55. b4
{[%clk 0:00:04.2]} 55... g4 {[%clk 0:00:05.7]} 56. b5 {[%clk 0:00:04.2]} 56...
Ra8 {[%clk 0:00:04.4]} 57. Rc6 {[%clk 0:00:04.1]} 57... g3 {[%clk 0:00:04.7]}
58. Rf6 {[%clk 0:00:03.9]} 58... g2 {[%clk 0:00:04.3]} 59. b6 {[%clk 0:00:04]}
59... Rd8 {[%clk 0:00:04.6]} 60. Rg6 {[%clk 0:00:03.8]} 60... Rd6 {[%clk
0:00:03.6]} 61. Rxd6 {[%clk 0:00:03.3]} 61... Bxd6 {[%clk 0:00:04.5]} 62. Kb3
{[%clk 0:00:02.4]} 62... Ke4 {[%clk 0:00:04.5]} 63. Kc4 {[%clk 0:00:02.5]} 63...
Be5 {[%clk 0:00:04.5]} 64. b7 {[%clk 0:00:02.7]} 64... Bxd4 {[%clk 0:00:04.4]}
65. b8=Q {[%clk 0:00:03.1]} 65... g1=Q {[%clk 0:00:04.5]} 66. Qb7+ {[%clk
0:00:03.4]} 66... Ke3 {[%clk 0:00:04.2]} 67. Qe7+ {[%clk 0:00:03.4]} 67... Kd2
{[%clk 0:00:03.5]} 68. cxd4 {[%clk 0:00:03.7]} 68... Qf1+ {[%clk 0:00:03.5]} 69.
Kc5 {[%clk 0:00:03.7]} 69... Qf5+ {[%clk 0:00:03.3]} 70. Qe5 {[%clk 0:00:04]}
70... Qc2+ {[%clk 0:00:03.7]} 71. Kd6 {[%clk 0:00:04.2]} 71... Qc4 {[%clk
0:00:03.9]} 72. d5 {[%clk 0:00:04.5]} 72... Qb4+ {[%clk 0:00:04.2]} 73. Ke6
{[%clk 0:00:04.9]} 73... Qg4+ {[%clk 0:00:04.3]} 74. Qf5 {[%clk 0:00:04.7]}
74... Qg8+ {[%clk 0:00:04.7]} 75. Ke5 {[%clk 0:00:04.5]} 75... Qg7+ {[%clk
0:00:04.9]} 76. Kd6 {[%clk 0:00:04.5]} 76... Qg3+ {[%clk 0:00:04.5]} 77. Kd7
{[%clk 0:00:04.5]} 77... Kc3 {[%clk 0:00:05]} 78. d6 {[%clk 0:00:04.5]} 78...
Qg7+ {[%clk 0:00:04.6]} 79. Ke6 {[%clk 0:00:04.6]} 79... Qg8+ {[%clk 0:00:04.8]}
80. Qf7 {[%clk 0:00:04.9]} 80... Qg4+ {[%clk 0:00:05.2]} 81. Ke7 {[%clk
0:00:05.5]} 81... Qe4+ {[%clk 0:00:05.6]} 82. Qe6 {[%clk 0:00:05.7]} 82... Qh7+
{[%clk 0:00:05.5]} 83. Kd8 {[%clk 0:00:06.1]} 83... Qh8+ {[%clk 0:00:05.3]} 84.
Ke7 {[%clk 0:00:06.2]} 84... Qg7+ {[%clk 0:00:05.2]} 85. Qf7 {[%clk 0:00:05.9]}
85... Qe5+ {[%clk 0:00:05.1]} 86. Kd7 {[%clk 0:00:06.3]} 86... Qb5+ {[%clk
0:00:05.5]} 87. Kd8 {[%clk 0:00:06.2]} 87... Qb8+ {[%clk 0:00:05.6]} 88. Ke7
{[%clk 0:00:06.7]} 88... Qb4 {[%clk 0:00:06.2]} 89. Qf6+ {[%clk 0:00:06.5]}
89... Kd3 {[%clk 0:00:06.7]} 90. Qe6 {[%clk 0:00:06.8]} 90... Qh4+ {[%clk
0:00:05.3]} 91. Ke8 {[%clk 0:00:06.8]} 91... Qh8+ {[%clk 0:00:04.5]} 92. Kd7
{[%clk 0:00:07.4]} 92... Qa1 {[%clk 0:00:04.4]} 93. Qf7 {[%clk 0:00:06.5]} 93...
Qa7+ {[%clk 0:00:04]} 94. Ke8 {[%clk 0:00:06.9]} 94... Qa8+ {[%clk 0:00:04.1]}
95. Ke7 {[%clk 0:00:07.5]} 95... Qe4+ {[%clk 0:00:04.3]} 96. Qe6 {[%clk
0:00:07.5]} 96... Qh7+ {[%clk 0:00:05]} 97. Kf8 {[%clk 0:00:07.7]} 97... Qh8+
{[%clk 0:00:05.3]} 98. Ke7 {[%clk 0:00:07.1]} 98... Qg7+ {[%clk 0:00:05.9]} 99.
Qf7 {[%clk 0:00:07]} 99... Qe5+ {[%clk 0:00:06.1]} 100. Kd7 {[%clk 0:00:07.3]}
100... Qb5+ {[%clk 0:00:06.4]} 101. Kc7 {[%clk 0:00:06.7]} 101... Qc5+ {[%clk
0:00:06.3]} 102. Kd7 {[%clk 0:00:06.5]} 102... Qa7+ {[%clk 0:00:06.6]} 103. Ke8
{[%clk 0:00:06.1]} 103... Qa8+ {[%clk 0:00:06.6]} 104. Kd7 {[%clk 0:00:06.1]}
104... Qa7+ {[%clk 0:00:06.6]} 1/2-1/2

[Event "Late-Titled-Tuesday-Blitz-October-03-2023"]
[Site "Chess.com"]
[Date "2023.10.03"]
[Round "7"]
[White "kuli4ik"]
[Black "lemures27"]
[Result "1-0"]
[WhiteElo "2931"]
[BlackElo "2471"]
[TimeControl "180+1"]
[EndTime "15:07:57 PDT"]
[Termination "kuli4ik won by resignation"]

1. Nf3 {[%clk 0:03:00.2]} 1... d5 {[%clk 0:02:59.1]} 2. d4 {[%clk 0:03:00.2]}
2... Nf6 {[%clk 0:02:57.5]} 3. Bf4 {[%clk 0:03:00.7]} 3... c5 {[%clk 0:02:57.3]}
4. dxc5 {[%clk 0:03:01.6]} 4... Nc6 {[%clk 0:02:56.2]} 5. c3 {[%clk 0:03:01.5]}
5... a5 {[%clk 0:02:55.3]} 6. Na3 {[%clk 0:03:01.4]} 6... Bf5 {[%clk 0:02:46.8]}
7. Nb5 {[%clk 0:03:00.8]} 7... Rc8 {[%clk 0:02:45.8]} 8. Qa4 {[%clk 0:03:00.2]}
8... Be4 {[%clk 0:02:41.7]} 9. Na7 {[%clk 0:02:52.9]} 9... Bxf3 {[%clk
0:02:37.4]} 10. exf3 {[%clk 0:02:52.4]} 10... e5 {[%clk 0:02:35.4]} 11. Bxe5
{[%clk 0:02:45.8]} 1-0

[Event "Late-Titled-Tuesday-Blitz-October-03-2023"]
[Site "Chess.com"]
[Date "2023.10.03"]
[Round "7"]
[White "Triumphmate"]
[Black "JoakimVonAnd"]
[Result "0-1"]
[WhiteElo "2501"]
[BlackElo "2713"]
[TimeControl "180+1"]
[EndTime "15:09:17 PDT"]
[Termination "JoakimVonAnd won by resignation"]

1. e4 {[%clk 0:03:00.9]} 1... g6 {[%clk 0:02:57.3]} 2. d4 {[%clk 0:03:00.9]}
2... Bg7 {[%clk 0:02:57.9]} 3. Nc3 {[%clk 0:03:01.8]} 3... a6 {[%clk 0:02:58.4]}
4. Be3 {[%clk 0:03:02.4]} 4... b5 {[%clk 0:02:58.4]} 5. Qd2 {[%clk 0:03:03.1]}
5... Bb7 {[%clk 0:02:55.2]} 6. f3 {[%clk 0:03:02.8]} 6... d6 {[%clk 0:02:55.1]}
7. O-O-O {[%clk 0:02:59.9]} 7... Nd7 {[%clk 0:02:55.3]} 8. h4 {[%clk 0:03:00.5]}
8... h5 {[%clk 0:02:54.7]} 9. Nh3 {[%clk 0:03:00.5]} 9... e6 {[%clk 0:02:54.5]}
10. Ng5 {[%clk 0:03:00.6]} 10... Ngf6 {[%clk 0:02:54.7]} 11. Bd3 {[%clk
0:02:53.7]} 11... Nb6 {[%clk 0:02:53.5]} 12. d5 {[%clk 0:02:52.4]} 12... exd5
{[%clk 0:02:44.8]} 13. Bxb6 {[%clk 0:02:52.3]} 13... cxb6 {[%clk 0:02:44.9]} 14.
Nxd5 {[%clk 0:02:52.3]} 14... Nxd5 {[%clk 0:02:43.5]} 15. exd5 {[%clk
0:02:53.2]} 15... O-O {[%clk 0:02:43.2]} 16. g4 {[%clk 0:02:50.3]} 16... Qf6
{[%clk 0:02:40]} 17. c3 {[%clk 0:02:47]} 17... b4 {[%clk 0:02:40.1]} 18. c4
{[%clk 0:02:46]} 18... b5 {[%clk 0:02:35.1]} 19. Kb1 {[%clk 0:02:40.2]} 19...
bxc4 {[%clk 0:02:32.2]} 20. Bxc4 {[%clk 0:02:40.6]} 20... Rac8 {[%clk
0:02:32.8]} 21. Bd3 {[%clk 0:02:34.7]} 21... Bxd5 {[%clk 0:02:30.7]} 22. gxh5
{[%clk 0:02:35.1]} 22... b3 {[%clk 0:02:24.7]} 23. a3 {[%clk 0:02:31.1]} 23...
Rc2 {[%clk 0:02:24.7]} 24. Qc3 {[%clk 0:02:13.4]} 24... Rxb2+ {[%clk 0:02:20.8]}
0-1

[Event "Late-Titled-Tuesday-Blitz-October-03-2023"]
[Site "Chess.com"]
[Date "2023.10.03"]
[Round "7"]
[White "KNVB"]
[Black "Marasmus01"]
[Result "1-0"]
[WhiteElo "2697"]
[BlackElo "2507"]
[TimeControl "180+1"]
[EndTime "15:09:41 PDT"]
[Termination "KNVB won by resignation"]

1. d4 {[%clk 0:02:52.7]} 1... g6 {[%clk 0:02:57.2]} 2. e4 {[%clk 0:02:51.5]}
2... Bg7 {[%clk 0:02:57.5]} 3. Nf3 {[%clk 0:02:51.5]} 3... d6 {[%clk 0:02:57.5]}
4. Nc3 {[%clk 0:02:50.1]} 4... Nf6 {[%clk 0:02:57.5]} 5. Be2 {[%clk 0:02:49.4]}
5... O-O {[%clk 0:02:57.6]} 6. O-O {[%clk 0:02:49.8]} 6... Nbd7 {[%clk
0:02:56.5]} 7. e5 {[%clk 0:02:48]} 7... Ne8 {[%clk 0:02:54.2]} 8. Bf4 {[%clk
0:02:47]} 8... c6 {[%clk 0:02:46.2]} 9. a4 {[%clk 0:02:47.2]} 9... Qb6 {[%clk
0:02:41.3]} 10. a5 {[%clk 0:02:21.2]} 10... Qxb2 {[%clk 0:02:37.6]} 11. Na4
{[%clk 0:02:11.6]} 1-0

[Event "Late-Titled-Tuesday-Blitz-October-03-2023"]
[Site "Chess.com"]
[Date "2023.10.03"]
[Round "7"]
[White "Mesa_1"]
[Black "GMForgacs"]
[Result "0-1"]
[WhiteElo "2610"]
[BlackElo "2471"]
[TimeControl "180+1"]
[EndTime "15:09:44 PDT"]
[Termination "GMForgacs won by resignation"]

1. e4 {[%clk 0:02:59.9]} 1... e5 {[%clk 0:02:59.8]} 2. Nf3 {[%clk 0:02:59.5]}
2... Nc6 {[%clk 0:03:00.4]} 3. Bb5 {[%clk 0:02:59.6]} 3... a6 {[%clk 0:03:00.7]}
4. Bxc6 {[%clk 0:03:00.2]} 4... dxc6 {[%clk 0:03:01.3]} 5. O-O {[%clk
0:03:00.5]} 5... Bg4 {[%clk 0:03:00.7]} 6. h3 {[%clk 0:03:00.6]} 6... Bh5 {[%clk
0:03:01.4]} 7. g4 {[%clk 0:02:53.3]} 7... Bg6 {[%clk 0:03:01.4]} 8. Nxe5 {[%clk
0:02:53.7]} 8... Qh4 {[%clk 0:03:02.1]} 9. Qf3 {[%clk 0:02:48.8]} 9... f6 {[%clk
0:03:02.7]} 10. Nxg6 {[%clk 0:02:42.6]} 10... hxg6 {[%clk 0:03:03.6]} 11. Kg2
{[%clk 0:02:42.2]} 11... g5 {[%clk 0:03:04.2]} 12. Nc3 {[%clk 0:02:28.3]} 12...
Ne7 {[%clk 0:03:04.4]} 13. d4 {[%clk 0:02:26.6]} 13... O-O-O {[%clk 0:03:02.4]}
14. Be3 {[%clk 0:02:25.6]} 14... Kb8 {[%clk 0:03:02.4]} 15. Rad1 {[%clk
0:02:23.7]} 15... Ng6 {[%clk 0:03:00.2]} 16. Qg3 {[%clk 0:02:08.7]} 16... Qh7
{[%clk 0:02:59.9]} 17. a3 {[%clk 0:02:00.4]} 17... Bd6 {[%clk 0:02:57.4]} 18. e5
{[%clk 0:01:56.8]} 18... fxe5 {[%clk 0:02:57]} 19. Ne4 {[%clk 0:01:57.5]} 19...
exd4 {[%clk 0:02:48.7]} 20. Nxd6 {[%clk 0:01:57.6]} 20... dxe3 {[%clk
0:02:43.2]} 21. Nf5 {[%clk 0:01:53.9]} 21... Nf4+ {[%clk 0:02:34.9]} 22. Kf3
{[%clk 0:01:49.3]} 22... e2 {[%clk 0:02:27.1]} 23. Rxd8+ {[%clk 0:01:47.1]}
23... Rxd8 {[%clk 0:02:27.7]} 24. Re1 {[%clk 0:01:46.1]} 24... Rd1 {[%clk
0:02:20]} 0-1

[Event "Late-Titled-Tuesday-Blitz-October-03-2023"]
[Site "Chess.com"]
[Date "2023.10.03"]
[Round "7"]
[White "davigator"]
[Black "Mikhal867"]
[Result "1-0"]
[WhiteElo "2316"]
[BlackElo "2451"]
[TimeControl "180+1"]
[EndTime "15:10:30 PDT"]
[Termination "davigator won by checkmate"]

1. e4 {[%clk 0:03:00.9]} 1... g6 {[%clk 0:02:55.4]} 2. d4 {[%clk 0:02:59.4]}
2... Bg7 {[%clk 0:02:55.5]} 3. Nc3 {[%clk 0:02:59.5]} 3... d6 {[%clk 0:02:55.9]}
4. Be3 {[%clk 0:02:59]} 4... a6 {[%clk 0:02:53.3]} 5. Qd2 {[%clk 0:02:58.4]}
5... b5 {[%clk 0:02:50.6]} 6. O-O-O {[%clk 0:02:58.5]} 6... Bb7 {[%clk
0:02:48.5]} 7. f3 {[%clk 0:02:57.8]} 7... Nd7 {[%clk 0:02:47.2]} 8. Kb1 {[%clk
0:02:56.3]} 8... Nb6 {[%clk 0:02:47.1]} 9. Bd3 {[%clk 0:02:54.7]} 9... b4 {[%clk
0:02:45.6]} 10. Nce2 {[%clk 0:02:54.3]} 10... a5 {[%clk 0:02:41.3]} 11. Nc1
{[%clk 0:02:51.8]} 11... Nf6 {[%clk 0:02:37.6]} 12. Bh6 {[%clk 0:02:49.3]} 12...
Bxh6 {[%clk 0:02:25.4]} 13. Qxh6 {[%clk 0:02:46.2]} 13... Ba6 {[%clk 0:02:25.5]}
14. Nge2 {[%clk 0:02:45.8]} 14... Nc4 {[%clk 0:02:23.3]} 15. Bxc4 {[%clk
0:02:43]} 15... Bxc4 {[%clk 0:02:22.8]} 16. Rhe1 {[%clk 0:02:40.5]} 16... a4
{[%clk 0:02:22.6]} 17. b3 {[%clk 0:02:36.9]} 17... Bxe2 {[%clk 0:02:20.4]} 18.
Rxe2 {[%clk 0:02:35.7]} 18... axb3 {[%clk 0:02:20.2]} 19. cxb3 {[%clk
0:02:35.4]} 19... Qd7 {[%clk 0:02:00.9]} 20. Rdd2 {[%clk 0:02:34.3]} 20... Qb5
{[%clk 0:01:59.2]} 21. Rc2 {[%clk 0:02:27.8]} 21... Kd7 {[%clk 0:01:53.8]} 22.
Qg7 {[%clk 0:02:21.4]} 22... Rhf8 {[%clk 0:01:50.5]} 23. Rc4 {[%clk 0:02:09.7]}
23... Ra7 {[%clk 0:01:34.2]} 24. Qxf8 {[%clk 0:02:06.9]} 24... Ke6 {[%clk
0:01:13.2]} 25. d5+ {[%clk 0:02:06]} 25... Ke5 {[%clk 0:01:12.2]} 26. Qxe7+
{[%clk 0:02:05.3]} 26... Kf4 {[%clk 0:01:11.6]} 27. Qxf6# {[%clk 0:02:05.5]} 1-0

[Event "Late-Titled-Tuesday-Blitz-October-03-2023"]
[Site "Chess.com"]
[Date "2023.10.03"]
[Round "7"]
[White "ferrufino64"]
[Black "Yushko_Olga"]
[Result "1-0"]
[WhiteElo "2231"]
[BlackElo "2104"]
[TimeControl "180+1"]
[EndTime "15:10:31 PDT"]
[Termination "ferrufino64 won by resignation"]

1. e4 {[%clk 0:02:54.7]} 1... e6 {[%clk 0:03:00]} 2. d4 {[%clk 0:02:53.8]} 2...
d5 {[%clk 0:03:00.1]} 3. Nc3 {[%clk 0:02:53.9]} 3... Nf6 {[%clk 0:03:00.2]} 4.
e5 {[%clk 0:02:52.8]} 4... Nfd7 {[%clk 0:03:00.1]} 5. f4 {[%clk 0:02:53.5]} 5...
c5 {[%clk 0:03:00.3]} 6. Nf3 {[%clk 0:02:53.5]} 6... Nc6 {[%clk 0:03:00.9]} 7.
Be3 {[%clk 0:02:51.7]} 7... cxd4 {[%clk 0:03:00.5]} 8. Nxd4 {[%clk 0:02:48.7]}
8... Nxd4 {[%clk 0:02:57.4]} 9. Bxd4 {[%clk 0:02:42.9]} 9... Bc5 {[%clk
0:02:58.1]} 10. Qd2 {[%clk 0:02:33.3]} 10... O-O {[%clk 0:02:51.8]} 11. O-O-O
{[%clk 0:02:31.4]} 11... a6 {[%clk 0:02:43.3]} 12. g4 {[%clk 0:02:28.9]} 12...
b5 {[%clk 0:02:42]} 13. Bxc5 {[%clk 0:02:19.9]} 13... Nxc5 {[%clk 0:02:42]} 14.
Bd3 {[%clk 0:02:20.2]} 14... Qa5 {[%clk 0:02:31.2]} 15. Kb1 {[%clk 0:02:17.3]}
15... b4 {[%clk 0:02:28.2]} 16. Ne2 {[%clk 0:02:17.4]} 16... Nxd3 {[%clk
0:02:25.5]} 17. Qxd3 {[%clk 0:02:12.3]} 17... Bd7 {[%clk 0:02:26]} 18. Nd4
{[%clk 0:02:12.1]} 18... Bb5 {[%clk 0:02:24]} 19. Qd2 {[%clk 0:02:11.7]} 19...
Rac8 {[%clk 0:02:16.9]} 20. f5 {[%clk 0:02:12]} 20... exf5 {[%clk 0:02:14.6]}
21. gxf5 {[%clk 0:02:12.1]} 21... Ba4 {[%clk 0:02:10.6]} 22. f6 {[%clk 0:02:10]}
22... Qc5 {[%clk 0:02:05.1]} 23. b3 {[%clk 0:01:59.6]} 23... Bd7 {[%clk
0:01:52.2]} 24. Qg5 {[%clk 0:01:56.8]} 1-0

[Event "Late-Titled-Tuesday-Blitz-October-03-2023"]
[Site "Chess.com"]
[Date "2023.10.03"]
[Round "7"]
[White "Korchmar_Vasiliy"]
[Black "victormago"]
[Result "1-0"]
[WhiteElo "2714"]
[BlackElo "2515"]
[TimeControl "180+1"]
[EndTime "15:10:34 PDT"]
[Termination "Korchmar_Vasiliy won by resignation"]

1. e4 {[%clk 0:03:00.9]} 1... c5 {[%clk 0:02:59.4]} 2. d4 {[%clk 0:03:00.7]}
2... cxd4 {[%clk 0:02:59.2]} 3. Qxd4 {[%clk 0:03:01.6]} 3... Nc6 {[%clk
0:02:58.9]} 4. Qd3 {[%clk 0:03:01.9]} 4... Nf6 {[%clk 0:02:56.7]} 5. Nc3 {[%clk
0:03:02]} 5... d6 {[%clk 0:02:57]} 6. Nf3 {[%clk 0:03:01.7]} 6... g6 {[%clk
0:02:57.4]} 7. Be2 {[%clk 0:03:02]} 7... Bg7 {[%clk 0:02:57.8]} 8. O-O {[%clk
0:03:02.6]} 8... O-O {[%clk 0:02:58.1]} 9. Nd5 {[%clk 0:03:03.1]} 9... Be6
{[%clk 0:02:48.8]} 10. c3 {[%clk 0:03:01.9]} 10... Bg4 {[%clk 0:02:39.6]} 11.
Bg5 {[%clk 0:03:00]} 11... Bxf3 {[%clk 0:02:39.2]} 12. Qxf3 {[%clk 0:02:59.6]}
12... Ne5 {[%clk 0:02:38.8]} 13. Qe3 {[%clk 0:02:48]} 13... Nxd5 {[%clk
0:02:35.1]} 14. exd5 {[%clk 0:02:47.2]} 14... Re8 {[%clk 0:02:35]} 15. f4 {[%clk
0:02:43.2]} 15... Nd7 {[%clk 0:02:35]} 16. Rae1 {[%clk 0:02:21.2]} 16... Nf6
{[%clk 0:02:33.3]} 17. Bb5 {[%clk 0:01:48.1]} 17... Ng4 {[%clk 0:02:21]} 18. Qe2
{[%clk 0:01:39.6]} 18... Qb6+ {[%clk 0:02:17.4]} 19. Kh1 {[%clk 0:01:39.3]}
19... Ne3 {[%clk 0:01:47.9]} 20. Bxe8 {[%clk 0:01:29.6]} 20... Nxf1 {[%clk
0:01:42.2]} 21. Bxf7+ {[%clk 0:01:28.7]} 21... Kxf7 {[%clk 0:01:40.3]} 22. Qe6+
{[%clk 0:01:28.1]} 1-0